bitfinex/quotes_SOLUSD_20251223
["timestamp","ask_amount","ask_price","bid_price","bid_amount"]
[1766498095043,7.16857698,123.5,123.47,8.09889393]
[1766498095237,7.16857698,123.49,123.46,23.54957634]
[1766498095933,7.82857698,123.5,123.47,0.67]
[1766498098749,7.16857698,123.48,123.46,14.78]
[1766498099449,7.16857698,123.48,123.45,19.20771311]
[1766498100152,7.16857698,123.46,123.42,8.7718584]
[1766498100322,7.16857698,123.45,123.42,23.5518584]
[1766498100528,7.16857698,123.44,123.42,15.45]
[1766498100744,7.16857698,123.44,123.42,14.78]
[1766498101032,7.82857698,123.46,123.42,23.5519921]
[1766498102430,7.16857698,123.45,123.42,15.45]
[1766498103726,8.75927278,123.47,123.42,23.55233435]
[1766498103928,7.16857698,123.45,123.42,23.55233435]
[1766498104648,7.16857698,123.45,123.42,15.45]
[1766498105054,7.82857698,123.43,123.39,0.67]
[1766498105255,8.1004714,123.45,123.37,8.77554081]
[1766498105256,7.16857698,123.41,123.37,8.77554081]
[1766498105443,7.16857698,123.39,123.37,15.45]
[1766498105638,7.16857698,123.39,123.37,14.78]
[1766498105836,7.16857698,123.4,123.37,14.78]
[1766498106048,7.16857698,123.4,123.37,15.45]
[1766498106651,7.16857698,123.39,123.37,15.45]
[1766498106952,7.16857698,123.39,123.35,0.66]
[1766498106953,7.16857698,123.38,123.35,0.66]
[1766498107138,7.85857698,123.39,123.35,0.66]
[1766498107453,7.16857698,123.39,123.35,0.66]
[1766498107652,0.69,123.43,123.35,35.54308721]
[1766498107865,7.16857698,123.4,123.36,0.66]
[1766498108538,7.16857698,123.39,123.36,0.66]
[1766498108746,7.16857698,123.38,123.35,8.76697882]
[1766498109059,7.16857698,123.38,123.35,0.66]
[1766498109237,7.16857698,123.38,123.35,8.76700017]
[1766498109756,7.16857698,123.39,123.36,0.66]
[1766498109952,7.16857698,123.4,123.36,0.66]
[1766498110149,7.16857698,123.4,123.36,15.44]
[1766498110762,7.16857698,123.4,123.36,14.78]
[1766498110949,7.16857698,123.4,123.37,0.66]
[1766498111153,7.16857698,123.4,123.37,8.76545399]
[1766498111355,7.16857698,123.43,123.39,0.66]
[1766498111856,7.16857698,123.42,123.39,0.66]
[1766498115250,7.16857698,123.42,123.39,8.76426716]
[1766498115448,0.69,123.46,123.4,14.78]
[1766498115646,7.16857698,123.45,123.41,7.16857698]
[1766498115964,7.16857698,123.45,123.42,0.66]
[1766498116191,7.85857698,123.46,123.42,0.66]
[1766498116356,7.16857698,123.47,123.43,15.44]
[1766498116665,7.16857698,123.45,123.43,25.21767296]
[1766498117567,7.16857698,123.45,123.42,0.66]
[1766498117748,7.16857698,123.45,123.42,8.76236629]
[1766498118672,0.69,123.46,123.42,8.76236629]
[1766498118975,7.16857698,123.45,123.42,8.76236629]
[1766498119963,2.75986507,123.45,123.42,0.66]
[1766498120169,2.75986507,123.45,123.42,8.76233466]
[1766498120569,8.09924296,123.47,123.42,2.75986507]
[1766498120863,2.75986507,123.46,123.41,17.53986507]
[1766498121069,2.75986507,123.45,123.41,23.59301482]
[1766498121447,3.41986507,123.44,123.41,14.78]
[1766498121858,3.41986507,123.42,123.37,8.81546393]
[1766498122066,3.41986507,123.41,123.37,8.81546393]
[1766498122563,2.75986507,123.41,123.37,8.81546393]
[1766498122767,8.76205916,123.43,123.38,0.71]
[1766498122768,2.75986507,123.42,123.38,0.71]
[1766498123264,3.41986507,123.43,123.38,2.75986507]
[1766498123481,3.41986507,123.43,123.39,15.49]
[1766498124047,3.41986507,123.43,123.39,23.59419657]
[1766498124856,2.75986507,123.42,123.39,23.59419657]
[1766498125571,2.75986507,123.41,123.39,14.78]
[1766498125791,2.75986507,123.4,123.38,8.10499215]
[1766498125970,2.75986507,123.41,123.39,8.10438158]
[1766498126479,2.75986507,123.42,123.39,8.10438158]
[1766498126975,2.75986507,123.42,123.38,8.81481352]
[1766498128457,2.75986507,123.41,123.38,8.81481352]
[1766498129461,2.75986507,123.43,123.39,0.71]
[1766498129663,3.41986507,123.44,123.4,0.71]
[1766498129981,2.75986507,123.45,123.41,0.71]
[1766498130186,3.41986507,123.46,123.41,0.71]
[1766498130678,2.75986507,123.46,123.42,8.10241451]
[1766498130860,2.75986507,123.44,123.41,23.59281081]
[1766498131579,3.41986507,123.45,123.41,23.59281081]
[1766498132280,2.75986507,123.44,123.41,0.71]
[1766498133050,0.66,123.45,123.41,0.71]
[1766498133256,2.75986507,123.45,123.41,8.81301848]
[1766498134158,2.75986507,123.45,123.42,0.69]
[1766498134577,8.77006414,123.46,123.4,8.10359993]
[1766498134760,2.75986507,123.43,123.41,0.69]
[1766498135368,2.75986507,123.43,123.4,8.79359993]
[1766498135678,2.75986507,123.43,123.4,8.10359993]
[1766498135979,2.75986507,123.43,123.4,8.79359993]
[1766498136173,2.75986507,123.42,123.39,10.43767296]
[1766498136361,2.75986507,123.43,123.4,0.69]
[1766498138057,1.7671283,123.43,123.4,0.69]
[1766498138257,1.7671283,123.43,123.39,18.54203611]
[1766498138455,1.7671283,123.43,123.39,19.22203611]
[1766498139970,2.4271283,123.43,123.39,19.22203611]
[1766498142302,1.7671283,123.43,123.4,0.68]
[1766498142764,2.4271283,123.43,123.4,0.68]
[1766498143800,0.66,123.43,123.4,8.78371298]
[1766498144763,4.1,123.42,123.4,8.78371298]
[1766498145382,2.4271283,123.45,123.41,0.68]
[1766498146276,0.66,123.45,123.41,8.78281281]
[1766498146472,1.7671283,123.44,123.41,8.78281281]
[1766498146676,0.66,123.45,123.41,8.78281281]
[1766498146879,1.7671283,123.44,123.41,8.78281281]
[1766498147278,0.66,123.45,123.41,8.78281281]
[1766498147483,1.7671283,123.44,123.41,8.78281281]
[1766498149479,1.7671283,123.43,123.4,8.10350921]
[1766498149787,1.7671283,123.43,123.4,8.78350921]
[1766498152684,2.4271283,123.44,123.41,0.68]
[1766498154496,2.4271283,123.44,123.41,8.78304352]
[1766498154800,2.4271283,123.44,123.41,0.68]
[1766498155089,2.4271283,123.45,123.41,8.78301498]
[1766498155293,0.66,123.45,123.41,8.78301498]
[1766498155591,1.7671283,123.44,123.41,8.78301498]
[1766498156577,1.7671283,123.43,123.41,0.68]
[1766498156782,0.66,123.41,123.37,0.68]
[1766498156973,8.10118369,123.44,123.36,8.78596256]
[1766498156974,1.7671283,123.39,123.36,8.78596256]
[1766498157374,1.7671283,123.39,123.36,19.22363552]
[1766498158086,0.66,123.4,123.36,18.54363552]
[1766498158288,8.10319378,123.41,123.37,0.68]
[1766498158289,1.7671283,123.41,123.37,0.68]
[1766498158596,2.4271283,123.41,123.37,0.68]
[1766498159191,2.4271283,123.41,123.37,8.7854923]
[1766498160498,1.7671283,123.4,123.37,0.68]
[1766498161002,1.7671283,123.4,123.37,8.78566536]
[1766498163903,1.7671283,123.41,123.38,0.68]
[1766498165584,8.10175808,123.43,123.38,0.68]
[1766498165784,1.7671283,123.43,123.39,0.68]
[1766498165992,2.4271283,123.42,123.39,0.68]
[1766498166311,2.4271283,123.42,123.39,8.78421672]
[1766498166712,2.4271283,123.42,123.39,0.68]
[1766498168391,2.4271283,123.42,123.39,8.78422752]
[1766498168594,1.7671283,123.44,123.4,0.67]
[1766498168911,2.4771283,123.45,123.4,0.67]
[1766498169509,10.57779778,123.45,123.4,0.67]
[1766498169715,1.7671283,123.44,123.4,0.67]
[1766498170914,1.7671283,123.44,123.4,8.77321078]
[1766498171116,1.7671283,123.44,123.41,0.67]
[1766498173104,1.7671283,123.44,123.41,8.77294042]
[1766498173306,1.7671283,123.46,123.42,0.67]
[1766498174316,1.7671283,123.46,123.42,8.77207369]
[1766498174717,1.7671283,123.46,123.43,0.67]
[1766498175219,1.7671283,123.47,123.43,0.67]
[1766498176520,1.7671283,123.47,123.44,0.67]
[1766498176706,1.7671283,123.47,123.43,8.10121043]
[1766498176907,2.4771283,123.47,123.43,8.77121043]
[1766498177594,1.7671283,123.47,123.44,0.67]
[1766498177798,20.24042672,123.52,123.46,10.43767296]
[1766498177998,0.71,123.5,123.45,0.67]
[1766498178206,1.7671283,123.48,123.45,0.67]
[1766498178408,2.4771283,123.48,123.45,0.67]
[1766498179296,2.4771283,123.49,123.45,8.77032029]
[1766498179494,8.09680747,123.51,123.46,0.67]
[1766498179726,1.7671283,123.5,123.46,0.67]
[1766498180429,2.4771283,123.51,123.47,0.67]
[1766498180630,2.4771283,123.52,123.47,22.87907999]
[1766498180828,2.4771283,123.52,123.48,0.67]
[1766498181210,2.4771283,123.53,123.48,0.67]
[1766498182522,8.80531415,123.53,123.49,0.67]
[1766498182736,2.4771283,123.53,123.49,0.67]
[1766498183231,10.57235765,123.53,123.49,0.67]
[1766498184020,2.4771283,123.53,123.49,0.67]
[1766498184726,8.29477805,123.54,123.5,0.67]
[1766498184921,10.06190635,123.54,123.5,0.67]
[1766498185637,2.6771283,123.54,123.5,0.67]
[1766498186535,2.6771283,123.54,123.51,0.67]
[1766498186930,1.7671283,123.53,123.49,8.09754404]
[1766498187248,2.4771283,123.52,123.48,19.20599992]
[1766498187629,8.29464309,123.54,123.48,18.53599992]
[1766498187812,1.7671283,123.52,123.49,8.76778169]
[1766498188322,1.7671283,123.52,123.49,0.67]
[1766498189533,0.2,123.54,123.5,0.67]
[1766498189740,2.6771283,123.54,123.5,0.67]
[1766498190436,1.9671283,123.54,123.5,0.67]
[1766498191128,0.2,123.54,123.51,0.67]
[1766498191650,0.2,123.54,123.51,1.7671283]
[1766498191847,0.2,123.54,123.52,0.67]
[1766498192447,0.2,123.55,123.53,11.10767296]
[1766498193010,0.2,123.55,123.53,10.43767296]
[1766498193642,0.2,123.55,123.52,0.67]
[1766498194117,0.2,123.55,123.52,8.76582282]
[1766498196843,0.2,123.55,123.52,0.67]
[1766498197039,1.9671283,123.55,123.52,0.67]
[1766498197240,2.6771283,123.55,123.51,19.19412534]
[1766498197443,2.6771283,123.55,123.52,0.66]
[1766498198446,2.6771283,123.55,123.52,8.75582703]
[1766498198744,1.9671283,123.55,123.52,8.75582703]
[1766498199248,1.9671283,123.55,123.52,8.75579557]
[1766498199942,2.95548004,123.55,123.52,0.66]
[1766498202515,2.75548004,123.53,123.5,15.44]
[1766498202737,11.04939886,123.55,123.49,0.66]
[1766498202738,3.46548004,123.52,123.49,0.66]
[1766498202927,3.46548004,123.52,123.49,11.09767296]
[1766498203130,2.75548004,123.51,123.48,14.78]
[1766498203325,3.46548004,123.5,123.45,20.25066625]
[1766498203527,3.46548004,123.5,123.46,0.66]
[1766498203738,3.46548004,123.5,123.46,11.09767296]
[1766498204343,2.75548004,123.49,123.46,19.19695751]
[1766498204648,3.46548004,123.47,123.42,8.76189057]
[1766498204946,2.75548004,123.48,123.44,0.66]
[1766498205446,2.75548004,123.49,123.46,0.66]
[1766498205834,3.46548004,123.49,123.45,8.76016541]
[1766498206153,2.75548004,123.48,123.45,0.66]
[1766498207656,2.75548004,123.5,123.47,0.66]
[1766498208154,3.46548004,123.51,123.47,0.66]
[1766498208357,2.75548004,123.5,123.47,0.66]
[1766498208652,2.75548004,123.49,123.47,0.66]
[1766498210061,0.71,123.51,123.47,0.66]
[1766498210373,2.75548004,123.5,123.47,8.75912211]
[1766498210855,2.75548004,123.5,123.47,0.66]
[1766498211060,0.71,123.51,123.47,8.75906555]
[1766498211267,2.75548004,123.52,123.48,0.66]
[1766498211442,11.56132942,123.53,123.48,0.66]
[1766498212544,11.56132942,123.53,123.49,0.66]
[1766498212545,2.75548004,123.52,123.49,0.66]
[1766498213156,3.46548004,123.52,123.48,8.09844569]
[1766498213361,0.71,123.52,123.48,8.75844569]
[1766498213657,2.75548004,123.51,123.48,0.66]
[1766498213860,3.46548004,123.51,123.47,11.09767296]
[1766498214636,3.46548004,123.51,123.47,19.19674751]
[1766498215360,3.46548004,123.51,123.48,8.09837724]
[1766498215540,3.46548004,123.51,123.47,11.09767296]
[1766498215541,3.46548004,123.51,123.47,19.19655346]
[1766498215879,2.75548004,123.49,123.46,0.66]
[1766498216042,2.75548004,123.49,123.45,33.97787362]
[1766498216043,3.46548004,123.49,123.45,33.97787362]
[1766498216852,2.75548004,123.49,123.46,8.7597672]
[1766498218152,0.71,123.52,123.47,0.66]
[1766498218359,2.75548004,123.5,123.47,0.66]
[1766498220573,3.46548004,123.51,123.47,0.66]
[1766498220785,2.75548004,123.5,123.47,0.66]
[1766498221449,2.75548004,123.5,123.47,8.75910517]
[1766498221855,2.75548004,123.5,123.47,8.09910517]
[1766498222084,0.71,123.51,123.47,8.09910517]
[1766498222085,2.75548004,123.51,123.48,0.66]
[1766498224275,10.85199256,123.51,123.48,0.66]
[1766498224483,11.56199256,123.51,123.48,0.66]
[1766498224873,3.46548004,123.51,123.48,0.66]
[1766498225180,3.46548004,123.51,123.48,8.75828128]
[1766498225687,2.75548004,123.51,123.48,8.75828128]
[1766498227491,2.75548004,123.52,123.49,0.68]
[1766498227783,3.45548004,123.53,123.49,8.77780799]
[1766498228283,2.75548004,123.52,123.49,0.68]
[1766498228783,2.75548004,123.52,123.49,8.7777961]
[1766498228979,8.79524857,123.53,123.49,8.7777961]
[1766498229161,8.79524857,123.53,123.49,8.0977961]
[1766498229357,0.2,123.55,123.5,0.68]
[1766498229565,2.95548004,123.55,123.52,0.68]
[1766498229856,0.2,123.55,123.53,0.68]
[1766498231964,0.2,123.55,123.48,20.43240265]
[1766498231965,0.7,123.53,123.48,20.43240265]
[1766498232155,2.75548004,123.5,123.47,8.77876044]
[1766498232587,2.75548004,123.5,123.47,0.68]
[1766498233080,2.75548004,123.49,123.46,22.8795393]
[1766498233287,2.75548004,123.49,123.46,23.5595393]
[1766498234064,2.75548004,123.49,123.46,33.99721226]
[1766498234892,0.7,123.5,123.46,33.31721226]
[1766498235209,3.45548004,123.51,123.47,0.68]
[1766498236507,3.45548004,123.51,123.47,8.77868438]
[1766498236876,0.7,123.51,123.47,8.77868438]
[1766498237069,3.45548004,123.51,123.47,8.77868438]
[1766498239792,3.45548004,123.5,123.46,33.99737468]
[1766498239973,2.75548004,123.49,123.46,33.99737468]
[1766498241594,3.45548004,123.5,123.46,33.99737468]
[1766498243684,2.75548004,123.49,123.46,33.99737468]
[1766498243875,0.7,123.5,123.46,33.99737468]
[1766498244204,3.45548004,123.5,123.46,33.99737468]
[1766498244386,0.7,123.5,123.47,0.68]
[1766498244586,3.45548004,123.5,123.47,0.68]
[1766498244891,0.7,123.5,123.47,0.68]
[1766498245096,3.45548004,123.5,123.47,0.68]
[1766498249605,20.23799886,123.53,123.48,0.68]
[1766498249606,8.09596566,123.52,123.48,0.68]
[1766498249806,2.75548004,123.51,123.48,0.68]
[1766498250805,3.45548004,123.51,123.48,0.68]
[1766498250985,11.55199871,123.51,123.47,0.68]
[1766498251992,2.75548004,123.5,123.47,0.68]
[1766498252207,8.79651867,123.51,123.47,0.68]
[1766498252407,2.75548004,123.5,123.47,0.68]
[1766498252605,8.79651867,123.51,123.47,0.68]
[1766498252810,2.75548004,123.5,123.47,0.68]
[1766498253432,11.55199871,123.51,123.47,0.68]
[1766498253794,3.47548004,123.49,123.46,14.78]
[1766498254106,3.47548004,123.47,123.44,0.66]
[1766498254279,2.75548004,123.46,123.42,23.54208474]
[1766498254482,2.75548004,123.46,123.42,22.88208474]
[1766498254687,2.75548004,123.46,123.43,0.66]
[1766498257232,8.81914493,123.47,123.43,0.66]
[1766498257518,2.75548004,123.46,123.43,0.66]
[1766498259626,2.75548004,123.46,123.44,0.71]
[1766498261420,0.72,123.47,123.44,0.71]
[1766498261611,2.75548004,123.46,123.44,0.71]
[1766498261921,1.76558164,123.48,123.45,0.71]
[1766498262225,8.80807718,123.49,123.46,0.71]
[1766498262226,1.76558164,123.49,123.46,0.71]
[1766498263008,2.47558164,123.5,123.46,0.71]
[1766498263325,2.47558164,123.5,123.47,0.71]
[1766498264599,0.71,123.5,123.47,0.71]
[1766498264801,2.47558164,123.5,123.47,0.71]
[1766498265513,10.57278933,123.5,123.47,0.71]
[1766498267025,1.76558164,123.49,123.47,0.71]
[1766498268327,2.47558164,123.48,123.45,0.71]
[1766498268527,1.76558164,123.47,123.45,0.71]
[1766498272737,8.80869074,123.48,123.45,0.71]
[1766498272934,1.76558164,123.47,123.45,0.71]
[1766498275334,8.80869074,123.48,123.45,0.71]
[1766498275527,1.76558164,123.48,123.45,0.71]
[1766498275844,8.09787032,123.49,123.45,0.71]
[1766498276011,9.86345196,123.49,123.45,0.71]
[1766498276528,1.76558164,123.49,123.46,0.71]
[1766498277128,1.76558164,123.48,123.46,0.71]
[1766498279244,1.76558164,123.49,123.46,0.71]
[1766498279638,8.80740978,123.5,123.46,0.71]
[1766498279836,1.76558164,123.53,123.49,0.71]
[1766498280642,8.80454427,123.54,123.49,0.71]
[1766498280841,1.76558164,123.53,123.49,0.71]
[1766498281045,1.76558164,123.52,123.49,0.71]
[1766498281339,1.76558164,123.5,123.48,0.71]
[1766498281539,8.09523807,123.53,123.48,0.71]
[1766498281720,1.76558164,123.51,123.48,0.71]
[1766498282240,2.47558164,123.52,123.48,0.71]
[1766498282547,1.76558164,123.52,123.49,0.71]
[1766498283128,0.2,123.55,123.51,0.71]
[1766498283546,1.76558164,123.53,123.51,0.71]
[1766498284126,1.76558164,123.53,123.5,14.78]
[1766498284319,1.76558164,123.53,123.5,15.49]
[1766498284749,10.57028881,123.54,123.5,15.49]
[1766498285544,2.47558164,123.54,123.5,15.49]
[1766498285748,2.47558164,123.54,123.51,0.71]
[1766498286336,10.57013305,123.54,123.51,0.71]
[1766498287647,9.86013305,123.54,123.51,0.71]
[1766498288548,8.98389087,123.55,123.51,1.76558164]
[1766498288849,8.98389087,123.55,123.52,0.67]
[1766498289054,10.74947251,123.55,123.52,0.67]
[1766498289348,2.45558164,123.54,123.51,0.67]
[1766498289649,2.45558164,123.54,123.5,25.31232867]
[1766498290051,2.45558164,123.54,123.51,0.67]
[1766498290446,2.45558164,123.54,123.5,24.64232867]
[1766498290753,0.69,123.53,123.5,25.31232867]
[1766498290962,2.45558164,123.54,123.5,25.31232867]
[1766498291153,2.45558164,123.54,123.51,0.67]
[1766498291352,1.76558164,123.53,123.5,15.45]
[1766498291556,2.45558164,123.53,123.5,15.45]
[1766498292042,1.76558164,123.52,123.48,19.20596297]
[1766498292351,2.45558164,123.52,123.49,0.67]
[1766498292929,0.69,123.52,123.49,0.67]
[1766498293648,8.09533873,123.53,123.49,0.67]
[1766498293953,0.69,123.53,123.49,10.533283]
[1766498294152,2.45558164,123.53,123.49,10.533283]
[1766498294649,1.76558164,123.53,123.5,0.67]
[1766498294855,2.65558164,123.55,123.51,0.67]
[1766498295059,10.74948691,123.55,123.51,0.67]
[1766498295261,1.76558164,123.54,123.51,0.67]
[1766498297242,1.96558164,123.55,123.52,0.67]
[1766498298165,0.2,123.55,123.53,10.53070102]
[1766498298662,0.2,123.55,123.53,8.76511938]
[1766498299343,0.2,123.55,123.53,0.67]
[1766498307896,0.69,123.54,123.5,14.78]
[1766498308046,1.76558164,123.51,123.46,0.67]
[1766498308245,1.76558164,123.51,123.41,28.36074871]
[1766498308246,2.45558164,123.47,123.42,0.67]
[1766498308471,1.76558164,123.46,123.43,14.78]
[1766498308781,0.69,123.43,123.4,0.67]
[1766498308995,0.69,123.43,123.39,23.55423375]
[1766498309159,2.45558164,123.44,123.4,8.77368286]
[1766498309760,11.12767296,123.46,123.41,0.67]
[1766498309962,0.69,123.48,123.44,0.67]
[1766498310175,2.45558164,123.48,123.44,0.67]
[1766498310359,10.43767296,123.49,123.44,0.67]
[1766498310563,1.76558164,123.48,123.44,0.67]
[1766498310787,2.45558164,123.47,123.43,0.67]
[1766498310990,1.76558164,123.46,123.43,0.67]
[1766498311894,0.69,123.47,123.43,0.67]
[1766498312089,1.76558164,123.46,123.43,0.67]
[1766498313392,1.76558164,123.47,123.44,0.66]
[1766498313896,2.46558164,123.45,123.42,14.78]
[1766498314280,1.76558164,123.44,123.41,0.66]
[1766498314479,1.76558164,123.43,123.41,0.66]
[1766498314685,1.76558164,123.43,123.4,14.78]
[1766498315276,0.7,123.42,123.38,0.1]
[1766498315597,1.76558164,123.41,123.38,0.76]
[1766498316587,10.43767296,123.43,123.39,0.66]
[1766498316784,1.76558164,123.43,123.39,0.66]
[1766498317195,1.76558164,123.43,123.39,1.76558164]
[1766498317395,1.76558164,123.43,123.4,0.65]
[1766498318295,1.76558164,123.43,123.4,8.75357437]
[1766498318500,2.46558164,123.44,123.4,8.75357437]
[1766498318995,8.10004384,123.46,123.4,8.75357437]
[1766498319196,1.76558164,123.45,123.41,0.65]
[1766498320302,1.76558164,123.45,123.42,0.65]
[1766498320600,1.76558164,123.43,123.4,8.1036044]
[1766498321494,1.76558164,123.44,123.41,8.10300979]
[1766498322500,1.76558164,123.44,123.4,0.65]
[1766498324004,2.7605249,123.44,123.41,0.65]
[1766498327705,2.7605249,123.44,123.41,8.75303843]
[1766498330907,3.4305249,123.45,123.41,0.65]
[1766498331110,0.67,123.46,123.42,0.65]
[1766498331295,3.4305249,123.46,123.42,0.65]
[1766498331694,2.7605249,123.46,123.42,0.65]
[1766498332209,0.67,123.47,123.42,0.65]
[1766498332415,0.67,123.47,123.43,3.4105249]
[1766498332416,2.7605249,123.47,123.43,3.4105249]
[1766498332597,2.7605249,123.47,123.44,0.65]
[1766498333114,10.43767296,123.44,123.38,0.1]
[1766498333338,2.7605249,123.34,123.33,0.1]
[1766498333491,2.7605249,123.33,123.32,1e-08]
[1766498333689,0.67,123.32,123.29,0.1]
[1766498333887,0.67,123.29,123.27,1.7]
[1766498334192,2.7605249,123.3,123.24,14.78]
[1766498334193,0.67,123.27,123.24,14.78]
[1766498334393,2.7605249,123.25,123.21,22.89572611]
[1766498334814,10.43767296,123.27,123.21,22.89572611]
[1766498334815,10.43767296,123.27,123.22,8.11556103]
[1766498335014,19.21689234,123.32,123.23,0.65]
[1766498335219,10.43767296,123.31,123.23,0.65]
[1766498335516,0.67,123.31,123.25,0.65]
[1766498335716,24.55100404,123.38,123.3,2.7605249]
[1766498336037,24.34570906,123.43,123.34,10.43767296]
[1766498336198,27.10623396,123.43,123.35,14.78]
[1766498336405,2.7605249,123.44,123.38,13.19819786]
[1766498336600,2.7605249,123.43,123.36,2.7605249]
[1766498336801,2.7605249,123.42,123.34,10.43767296]
[1766498337001,8.10110174,123.44,123.35,18.54468552]
[1766498337201,10.43767296,123.44,123.36,2.7605249]
[1766498337519,24.34175828,123.45,123.38,10.43767296]
[1766498337718,0.67,123.41,123.36,14.78]
[1766498338115,0.67,123.41,123.37,7.18094227]
[1766498338426,0.67,123.41,123.36,14.78]
[1766498338596,0.67,123.41,123.37,7.18094227]
[1766498339113,0.67,123.41,123.38,8.10504133]
[1766498339622,0.67,123.41,123.38,15.2859836]
[1766498339806,0.67,123.43,123.38,8.10504133]
[1766498340014,0.67,123.43,123.38,15.2859836]
[1766498340818,7.85094227,123.42,123.38,8.10504133]
[1766498341024,0.67,123.4,123.37,8.1056983]
[1766498341833,7.18094227,123.4,123.37,8.1056983]
[1766498342005,0.67,123.39,123.36,22.88621097]
[1766498343049,7.18094227,123.41,123.36,22.88621097]
[1766498343324,7.85094227,123.43,123.36,43.15209942]
[1766498343500,10.43767296,123.44,123.36,43.15209942]
[1766498343501,7.18094227,123.42,123.36,43.15209942]
[1766498343700,7.85094227,123.39,123.36,8.10621097]
[1766498343901,7.85094227,123.38,123.36,8.10621097]
[1766498344126,0.67,123.38,123.36,8.10621097]
[1766498344912,0.67,123.41,123.35,8.10701256]
[1766498345107,7.18094227,123.36,123.33,14.78]
[1766498345332,7.18094227,123.36,123.3,53.59437214]
[1766498345532,7.18094227,123.33,123.3,41.42897947]
[1766498345824,0.67,123.33,123.3,22.89008955]
[1766498346025,7.85094227,123.34,123.3,22.89008955]
[1766498346227,7.18094227,123.36,123.3,50.34678202]
[1766498346526,0.67,123.35,123.31,7.18094227]
[1766498346828,0.67,123.35,123.32,8.10898475]
[1766498347127,10.43767296,123.37,123.32,15.28992702]
[1766498347128,7.83094227,123.37,123.32,15.28992702]
[1766498347914,7.83094227,123.37,123.32,8.10898475]
[1766498348108,0.65,123.37,123.32,8.10898475]
[1766498348310,7.18094227,123.36,123.32,15.28992702]
[1766498348527,7.83094227,123.36,123.32,8.10898475]
[1766498348826,7.83094227,123.36,123.31,28.38288542]
[1766498349024,7.83094227,123.36,123.31,35.56382769]
[1766498349228,0.65,123.36,123.31,28.38288542]
[1766498349429,7.83094227,123.36,123.31,35.56382769]
[1766498349926,0.65,123.36,123.31,35.56382769]
[1766498350140,7.83094227,123.36,123.31,35.56382769]
[1766498350312,17.61861523,123.38,123.31,28.38288542]
[1766498350514,18.26861523,123.38,123.33,7.18094227]
[1766498350717,18.26861523,123.38,123.33,21.96094227]
[1766498351054,7.83094227,123.38,123.33,21.96094227]
[1766498351324,7.83094227,123.38,123.33,14.78]
[1766498351530,7.83094227,123.38,123.33,21.96094227]
[1766498352319,7.83094227,123.38,123.34,8.10766985]
[1766498352629,0.65,123.38,123.34,15.28861212]
[1766498353220,0.65,123.38,123.37,7.18094227]
[1766498353733,0.65,123.38,123.36,7.18094227]
[1766498353932,0.65,123.38,123.34,28.37684448]
[1766498354123,0.65,123.38,123.36,7.18094227]
[1766498354935,0.65,123.39,123.37,7.18094227]
[1766498355133,11.08767296,123.41,123.38,7.18094227]
[1766498355317,11.08767296,123.41,123.39,7.18094227]
[1766498355936,0.65,123.4,123.36,15.28723769]
[1766498356136,0.65,123.4,123.37,7.18094227]
[1766498356331,0.65,123.4,123.38,7.18094227]
[1766498356634,0.65,123.4,123.39,7.18094227]
[1766498359140,11.08767296,123.42,123.39,7.18094227]
[1766498359332,0.65,123.42,123.41,7.18094227]
[1766498361758,0.65,123.42,123.4,7.18094227]
[1766498362842,19.18879052,123.44,123.41,7.18094227]
[1766498363028,0.65,123.43,123.42,7.18094227]
[1766498363823,15.45,123.45,123.42,15.28323084]
[1766498364050,0.65,123.45,123.43,7.18094227]
[1766498364546,0.65,123.45,123.44,7.18094227]
[1766498365944,0.65,123.47,123.44,15.28177961]
[1766498366149,15.45,123.48,123.46,7.18094227]
[1766498366443,0.65,123.48,123.46,7.18094227]
[1766498366849,0.65,123.48,123.44,8.10083734]
[1766498366850,0.65,123.49,123.47,7.18094227]
[1766498367056,0.65,123.49,123.48,7.18094227]
[1766498367216,0.65,123.49,123.44,8.10083734]
[1766498367418,0.65,123.49,123.45,7.18094227]